[Event "*** Titled Tuesday Blitz"]
[Site "Chess.com"]
[Date "2020.11.24"]
[Round "8"]
[White "GM_LOADING"]
[Black "Zubrrr"]
[Result "1/2-1/2"]
[WhiteElo "2489"]
[BlackElo "2640"]
[TimeControl "180+1"]
[EndTime "11:48:17 PST"]
[Termination "Game drawn by agreement"]

1. e4 {[%clk 0:03:00.9]} 1... c5 {[%clk 0:02:55.6]} 2. Nf3 {[%clk 0:03:01.3]}
2... d6 {[%clk 0:02:55.8]} 3. d4 {[%clk 0:03:01.9]} 3... cxd4 {[%clk 0:02:56.7]}
4. Nxd4 {[%clk 0:03:02.8]} 4... Nf6 {[%clk 0:02:57.4]} 5. Nc3 {[%clk 0:03:03.5]}
5... a6 {[%clk 0:02:57.9]} 6. Be2 {[%clk 0:03:02.1]} 6... e6 {[%clk 0:02:58.1]}
7. Nf3 {[%clk 0:03:02.7]} 7... Be7 {[%clk 0:02:57.3]} 8. O-O {[%clk 0:03:02.5]}
8... O-O {[%clk 0:02:57.3]} 9. Be3 {[%clk 0:03:01.1]} 9... Qc7 {[%clk
0:02:55.3]} 10. a4 {[%clk 0:03:00.5]} 10... b6 {[%clk 0:02:53.2]} 11. Nd2 {[%clk
0:02:52.8]} 11... Bb7 {[%clk 0:02:52.5]} 12. Bd3 {[%clk 0:02:53.1]} 12... Nbd7
{[%clk 0:02:52.3]} 13. Qe2 {[%clk 0:02:52.4]} 13... Nc5 {[%clk 0:02:45.8]} 14.
Rad1 {[%clk 0:02:51.8]} 14... Rfd8 {[%clk 0:02:36.9]} 15. f4 {[%clk 0:02:51.9]}
15... Nxd3 {[%clk 0:02:32.6]} 16. cxd3 {[%clk 0:02:50.2]} 16... d5 {[%clk
0:02:32.8]} 17. e5 {[%clk 0:02:50.5]} 17... d4 {[%clk 0:02:26]} 18. exf6 {[%clk
0:02:49]} 18... Bxf6 {[%clk 0:02:20.7]} 19. Nce4 {[%clk 0:02:46.7]} 19... dxe3
{[%clk 0:02:21.1]} 20. Nxf6+ {[%clk 0:02:46.2]} 20... gxf6 {[%clk 0:02:22]} 21.
Qxe3 {[%clk 0:02:46.9]} 21... Kh8 {[%clk 0:02:18.4]} 22. Ne4 {[%clk 0:02:42.7]}
22... f5 {[%clk 0:01:38.1]} 23. Ng5 {[%clk 0:02:38.3]} 23... Rg8 {[%clk
0:01:11.8]} 24. Rc1 {[%clk 0:02:15.7]} 24... Qe7 {[%clk 0:01:11.5]} 25. Qe5+
{[%clk 0:01:46.7]} 25... f6 {[%clk 0:01:11.5]} 26. Rc7 {[%clk 0:01:47.2]} 26...
fxe5 {[%clk 0:00:53.4]} 27. Rxe7 {[%clk 0:01:46.7]} 27... Rg7 {[%clk 0:00:53.1]}
28. Nf7+ {[%clk 0:00:59.3]} 28... Kg8 {[%clk 0:00:52.8]} 29. Rxb7 {[%clk
0:00:59.9]} 29... Rxf7 {[%clk 0:00:51.9]} 30. Rxb6 {[%clk 0:01:00.6]} 30... exf4
{[%clk 0:00:50.8]} 31. Rxe6 {[%clk 0:01:00.2]} 31... Rb8 {[%clk 0:00:43.8]} 32.
Rf2 {[%clk 0:00:50.3]} 32... Rd7 {[%clk 0:00:43.6]} 33. Rxf4 {[%clk 0:00:36.7]}
33... Rxb2 {[%clk 0:00:36.7]} 34. h3 {[%clk 0:00:33.6]} 34... Rxd3 {[%clk
0:00:34.7]} 35. Rxf5 {[%clk 0:00:30.1]} 35... Rg3 {[%clk 0:00:20.5]} 36. Rf2
{[%clk 0:00:27.5]} 36... Rb1+ {[%clk 0:00:07.2]} 37. Kh2 {[%clk 0:00:27.5]}
37... Rg6 {[%clk 0:00:06.5]} 38. Rff6 {[%clk 0:00:17.4]} 38... Rg5 {[%clk
0:00:07]} 39. Rf2 {[%clk 0:00:10.9]} 39... Rg6 {[%clk 0:00:06.6]} 40. Rxg6+
{[%clk 0:00:10.3]} 40... hxg6 {[%clk 0:00:06.8]} 41. Rf6 {[%clk 0:00:10.9]}
41... Kg7 {[%clk 0:00:07]} 42. Rxa6 {[%clk 0:00:11.2]} 42... Rb3 {[%clk
0:00:07.3]} 43. Ra5 {[%clk 0:00:09.4]} 43... Ra3 {[%clk 0:00:07.7]} 44. h4
{[%clk 0:00:08.6]} 44... Kf6 {[%clk 0:00:06.6]} 45. g3 {[%clk 0:00:08.7]} 45...
Kg7 {[%clk 0:00:06.3]} 46. Kh3 {[%clk 0:00:09.2]} 46... Kf6 {[%clk 0:00:06.8]}
47. Kg4 {[%clk 0:00:09.8]} 47... Rc3 {[%clk 0:00:06.4]} 48. Ra6+ {[%clk
0:00:08]} 48... Kg7 {[%clk 0:00:06.9]} 49. Kh3 {[%clk 0:00:06]} 49... Rc4 {[%clk
0:00:06]} 50. a5 {[%clk 0:00:05.3]} 50... Ra4 {[%clk 0:00:06.2]} 51. Kg2 {[%clk
0:00:05.2]} 51... Ra3 {[%clk 0:00:06.3]} 52. Kf2 {[%clk 0:00:05.3]} 52... Kf7
{[%clk 0:00:06.6]} 53. Ra7+ {[%clk 0:00:05.6]} 53... Kf6 {[%clk 0:00:06.8]} 54.
Kg2 {[%clk 0:00:05.4]} 54... Kf5 {[%clk 0:00:06.4]} 55. Kh3 {[%clk 0:00:06]}
55... Kf6 {[%clk 0:00:06.7]} 56. a6 {[%clk 0:00:05.9]} 56... Ra4 {[%clk
0:00:05.8]} 57. Ra8 {[%clk 0:00:05.9]} 57... Kg7 {[%clk 0:00:06.3]} 58. a7
{[%clk 0:00:05.5]} 58... Ra3 {[%clk 0:00:06.4]} 59. Kg4 {[%clk 0:00:04.9]} 59...
Ra4+ {[%clk 0:00:06.9]} 60. Kf3 {[%clk 0:00:05.1]} 60... Ra3+ {[%clk 0:00:07.5]}
61. Ke4 {[%clk 0:00:05.1]} 61... Ra4+ {[%clk 0:00:07.2]} 62. Ke5 {[%clk
0:00:05.8]} 62... Ra1 {[%clk 0:00:06.7]} 63. Kd6 {[%clk 0:00:05]} 63... Rd1+
{[%clk 0:00:06.6]} 64. Ke5 {[%clk 0:00:05.3]} 64... Ra1 {[%clk 0:00:06.3]} 65.
g4 {[%clk 0:00:04.4]} 65... Re1+ {[%clk 0:00:06.1]} 66. Kd4 {[%clk 0:00:04.7]}
66... Rd1+ {[%clk 0:00:06.4]} 67. Ke3 {[%clk 0:00:04.8]} 67... Ra1 {[%clk
0:00:06.7]} 68. g5 {[%clk 0:00:05.3]} 68... Ra4 {[%clk 0:00:06.4]} 69. Kd3
{[%clk 0:00:05.3]} 69... Ra1 {[%clk 0:00:05.5]} 70. Kc2 {[%clk 0:00:05.1]} 70...
Ra6 {[%clk 0:00:04.4]} 71. Kb3 {[%clk 0:00:05]} 71... Ra1 {[%clk 0:00:03.2]} 72.
Kc4 {[%clk 0:00:05]} 72... Rc1+ {[%clk 0:00:03.1]} 73. Kd3 {[%clk 0:00:05.4]}
73... Ra1 {[%clk 0:00:03.5]} 74. Re8 {[%clk 0:00:05.4]} 74... Rxa7 {[%clk
0:00:03.4]} 75. Ke3 {[%clk 0:00:05.7]} 75... Ra3+ {[%clk 0:00:03.6]} 76. Kf4
{[%clk 0:00:06.2]} 76... Rh3 {[%clk 0:00:03.6]} 77. Kg4 {[%clk 0:00:05.6]} 77...
Ra3 {[%clk 0:00:03.3]} 78. Re7+ {[%clk 0:00:06.2]} 78... Kf8 {[%clk 0:00:03.5]}
79. Rc7 {[%clk 0:00:06.7]} 79... Ra4+ {[%clk 0:00:03.5]} 80. Kg3 {[%clk
0:00:07.3]} 80... Kg8 {[%clk 0:00:04.1]} 81. Re7 {[%clk 0:00:04.8]} 81... Kf8
{[%clk 0:00:04.2]} 82. Re3 {[%clk 0:00:03.8]} 82... Kg7 {[%clk 0:00:04.4]} 83.
Rf3 {[%clk 0:00:04]} 83... Rb4 {[%clk 0:00:04.9]} 84. Rf4 {[%clk 0:00:04.5]}
84... Rb1 {[%clk 0:00:05.3]} 85. Kg4 {[%clk 0:00:05.4]} 85... Rg1+ {[%clk
0:00:05.4]} 86. Kh3 {[%clk 0:00:04.5]} 1/2-1/2

[Event "*** Titled Tuesday Blitz"]
[Site "Chess.com"]
[Date "2020.11.24"]
[Round "8"]
[White "Oglob71"]
[Black "kleopl"]
[Result "1/2-1/2"]
[WhiteElo "2405"]
[BlackElo "2505"]
[TimeControl "180+1"]
[EndTime "11:49:39 PST"]
[Termination "Game drawn by stalemate"]

1. d4 {[%clk 0:03:00.7]} 1... f5 {[%clk 0:02:58.5]} 2. g3 {[%clk 0:02:59.5]}
2... Nf6 {[%clk 0:02:58.4]} 3. Bg2 {[%clk 0:03:00]} 3... d6 {[%clk 0:02:58.8]}
4. c3 {[%clk 0:02:56.8]} 4... g6 {[%clk 0:02:58.7]} 5. Qb3 {[%clk 0:02:56]} 5...
c6 {[%clk 0:02:56.9]} 6. Nd2 {[%clk 0:02:56.3]} 6... Bg7 {[%clk 0:02:56.3]} 7.
Nh3 {[%clk 0:02:56.2]} 7... e6 {[%clk 0:02:54.5]} 8. Nf4 {[%clk 0:02:55.4]} 8...
Qe7 {[%clk 0:02:54.2]} 9. e4 {[%clk 0:02:53.8]} 9... Na6 {[%clk 0:02:43.1]} 10.
O-O {[%clk 0:02:52.5]} 10... O-O {[%clk 0:02:07.7]} 11. Re1 {[%clk 0:02:50.2]}
11... Nc7 {[%clk 0:02:02.5]} 12. exf5 {[%clk 0:02:45.7]} 12... gxf5 {[%clk
0:02:03.4]} 13. Qa3 {[%clk 0:02:42.3]} 13... Kh8 {[%clk 0:01:58.2]} 14. Nc4
{[%clk 0:02:40.6]} 14... Nb5 {[%clk 0:01:47.7]} 15. Qb3 {[%clk 0:02:40.5]} 15...
d5 {[%clk 0:01:26.2]} 16. Ne5 {[%clk 0:02:39.7]} 16... Qe8 {[%clk 0:01:23.1]}
17. Nfd3 {[%clk 0:02:35.1]} 17... Nd6 {[%clk 0:01:21.5]} 18. Qc2 {[%clk
0:02:32.3]} 18... b6 {[%clk 0:01:16.8]} 19. Bf4 {[%clk 0:02:28.4]} 19... Ba6
{[%clk 0:01:15.9]} 20. Rad1 {[%clk 0:02:25.3]} 20... Bxd3 {[%clk 0:01:14.8]} 21.
Nxd3 {[%clk 0:02:23.7]} 21... Qd7 {[%clk 0:01:10.3]} 22. Be5 {[%clk 0:02:15.9]}
22... Nc4 {[%clk 0:01:02.5]} 23. Bf4 {[%clk 0:02:13.3]} 23... Nh5 {[%clk
0:01:00.8]} 24. b3 {[%clk 0:02:12]} 24... Nxf4 {[%clk 0:00:57.3]} 25. Nxf4
{[%clk 0:02:10.3]} 25... Nd6 {[%clk 0:00:54.9]} 26. Nxe6 {[%clk 0:02:08.9]}
26... Rf6 {[%clk 0:00:46.2]} 27. Nxg7 {[%clk 0:02:05.6]} 27... Kxg7 {[%clk
0:00:47.1]} 28. Re5 {[%clk 0:02:04]} 28... Raf8 {[%clk 0:00:40.8]} 29. Rde1
{[%clk 0:02:02.8]} 29... R8f7 {[%clk 0:00:39.9]} 30. Qd2 {[%clk 0:01:56]} 30...
f4 {[%clk 0:00:27.5]} 31. gxf4 {[%clk 0:01:54]} 31... Rxf4 {[%clk 0:00:22.3]}
32. Qxf4 {[%clk 0:01:51]} 32... Rxf4 {[%clk 0:00:23.2]} 33. Re7+ {[%clk
0:01:40.8]} 33... Qxe7 {[%clk 0:00:16.9]} 34. Rxe7+ {[%clk 0:01:34.5]} 34... Rf7
{[%clk 0:00:17.8]} 35. Re6 {[%clk 0:01:26]} 35... Rf6 {[%clk 0:00:13]} 36. Re7+
{[%clk 0:01:24.4]} 36... Rf7 {[%clk 0:00:13]} 37. Rxf7+ {[%clk 0:01:24.9]} 37...
Kxf7 {[%clk 0:00:12.8]} 38. a4 {[%clk 0:01:20.6]} 38... Kf6 {[%clk 0:00:10.9]}
39. Kf1 {[%clk 0:01:20.3]} 39... h6 {[%clk 0:00:08.9]} 40. Ke2 {[%clk
0:01:20.5]} 40... Ke7 {[%clk 0:00:05.9]} 41. Ke3 {[%clk 0:01:20.5]} 41... Kf6
{[%clk 0:00:06.2]} 42. Kf4 {[%clk 0:01:20.2]} 42... Nf7 {[%clk 0:00:03.9]} 43.
Bh3 {[%clk 0:01:18.4]} 43... Ng5 {[%clk 0:00:03.5]} 44. Bg2 {[%clk 0:01:15.8]}
44... Ne6+ {[%clk 0:00:02.5]} 45. Ke3 {[%clk 0:01:15.8]} 45... Ng5 {[%clk
0:00:02.4]} 46. f4 {[%clk 0:01:14.6]} 46... Nf7 {[%clk 0:00:02.4]} 47. Bh3
{[%clk 0:01:15]} 47... Nd6 {[%clk 0:00:01.9]} 48. Bd7 {[%clk 0:01:14.7]} 48...
c5 {[%clk 0:00:02.2]} 49. Bc6 {[%clk 0:01:13.5]} 49... Nf5+ {[%clk 0:00:02.2]}
50. Kd3 {[%clk 0:01:12.1]} 50... cxd4 {[%clk 0:00:02.3]} 51. cxd4 {[%clk
0:01:11.7]} 51... Ke6 {[%clk 0:00:02.6]} 52. Bb7 {[%clk 0:01:11.5]} 52... Kd6
{[%clk 0:00:02.8]} 53. Bc8 {[%clk 0:01:11.2]} 53... Ne7 {[%clk 0:00:03.1]} 54.
Bg4 {[%clk 0:01:10.5]} 54... Nc6 {[%clk 0:00:03.2]} 55. Bd1 {[%clk 0:01:01.8]}
55... Nb4+ {[%clk 0:00:02.8]} 56. Ke3 {[%clk 0:01:02.1]} 56... a5 {[%clk
0:00:03.3]} 57. f5 {[%clk 0:01:01.8]} 57... Ke7 {[%clk 0:00:03.1]} 58. Kf4
{[%clk 0:01:01.1]} 58... Kf6 {[%clk 0:00:04]} 59. Bf3 {[%clk 0:01:00.4]} 59...
Nc6 {[%clk 0:00:03.9]} 60. Ke3 {[%clk 0:00:59.5]} 60... Nb4 {[%clk 0:00:04.1]}
61. Bg4 {[%clk 0:00:57.1]} 61... Kg5 {[%clk 0:00:04.2]} 62. Bh3 {[%clk
0:00:56.4]} 62... Kf6 {[%clk 0:00:04.5]} 63. Bg4 {[%clk 0:00:48.1]} 63... Kg5
{[%clk 0:00:04.5]} 64. Bh3 {[%clk 0:00:36.9]} 64... Kf6 {[%clk 0:00:05.4]} 65.
Kd2 {[%clk 0:00:34.3]} 65... Kg5 {[%clk 0:00:05.3]} 66. Kc3 {[%clk 0:00:33.9]}
66... Kf6 {[%clk 0:00:05.6]} 67. Bg4 {[%clk 0:00:31.3]} 67... Kg5 {[%clk
0:00:05.7]} 68. Bh3 {[%clk 0:00:29.7]} 68... Kf6 {[%clk 0:00:06.1]} 69. Kd2
{[%clk 0:00:30.1]} 69... Kg5 {[%clk 0:00:06.2]} 70. f6 {[%clk 0:00:28.4]} 70...
Kxf6 {[%clk 0:00:06.1]} 71. Bg2 {[%clk 0:00:28.9]} 71... Ke6 {[%clk 0:00:06.2]}
72. Kc3 {[%clk 0:00:28.1]} 72... Kd6 {[%clk 0:00:06.5]} 73. Bh3 {[%clk
0:00:28.1]} 73... Nc6 {[%clk 0:00:06.7]} 74. Bf5 {[%clk 0:00:27.6]} 74... Nb4
{[%clk 0:00:06.8]} 75. Bd3 {[%clk 0:00:26.9]} 75... Ke6 {[%clk 0:00:05.8]} 76.
Be2 {[%clk 0:00:25.9]} 76... Kf5 {[%clk 0:00:06]} 77. Kd2 {[%clk 0:00:25.3]}
77... Kf4 {[%clk 0:00:06.2]} 78. Bh5 {[%clk 0:00:23.6]} 78... Ke4 {[%clk
0:00:06.3]} 79. Kc3 {[%clk 0:00:23.6]} 79... Ke3 {[%clk 0:00:06.5]} 80. Bf7
{[%clk 0:00:22.2]} 80... Kf2 {[%clk 0:00:06.6]} 81. h4 {[%clk 0:00:19.6]} 81...
Kg3 {[%clk 0:00:06.4]} 82. h5 {[%clk 0:00:20.1]} 82... Kf4 {[%clk 0:00:06.8]}
83. Be8 {[%clk 0:00:20]} 83... Ke3 {[%clk 0:00:06.9]} 84. Bg6 {[%clk 0:00:20.2]}
84... Na2+ {[%clk 0:00:06.6]} 85. Kb2 {[%clk 0:00:19.2]} 85... Nb4 {[%clk
0:00:06.7]} 86. Kc3 {[%clk 0:00:19.4]} 86... Nc6 {[%clk 0:00:06.7]} 87. Bf7
{[%clk 0:00:18.4]} 87... Nxd4 {[%clk 0:00:06.4]} 88. Bxd5 {[%clk 0:00:18.6]}
88... Ne2+ {[%clk 0:00:06.2]} 89. Kc4 {[%clk 0:00:18.5]} 89... Nd4 {[%clk
0:00:06.2]} 90. Bf7 {[%clk 0:00:17.2]} 90... Ke4 {[%clk 0:00:04.4]} 91. Bg6+
{[%clk 0:00:16.9]} 91... Ke5 {[%clk 0:00:04.6]} 92. Bd3 {[%clk 0:00:16.8]} 92...
Ne6 {[%clk 0:00:03.8]} 93. Kb5 {[%clk 0:00:16.2]} 93... Nd4+ {[%clk 0:00:04.2]}
94. Kxb6 {[%clk 0:00:14.5]} 94... Nxb3 {[%clk 0:00:04.1]} 95. Kb5 {[%clk
0:00:12.9]} 95... Kd4 {[%clk 0:00:03.4]} 96. Bg6 {[%clk 0:00:12.6]} 96... Nc5
{[%clk 0:00:03.4]} 97. Kxa5 {[%clk 0:00:11.7]} 97... Kd5 {[%clk 0:00:02.8]} 98.
Be8 {[%clk 0:00:11.8]} 98... Ke6 {[%clk 0:00:02]} 99. Kb6 {[%clk 0:00:11.7]}
99... Nxa4+ {[%clk 0:00:02.1]} 100. Bxa4 {[%clk 0:00:11.5]} 100... Kf7 {[%clk
0:00:03]} 101. Bd1 {[%clk 0:00:11.7]} 101... Kg7 {[%clk 0:00:03.9]} 102. Kc6
{[%clk 0:00:12.2]} 102... Kh8 {[%clk 0:00:04.8]} 103. Kd6 {[%clk 0:00:12.9]}
103... Kg7 {[%clk 0:00:05.7]} 104. Ke6 {[%clk 0:00:13.8]} 104... Kh8 {[%clk
0:00:06.5]} 105. Kf5 {[%clk 0:00:14.4]} 105... Kg7 {[%clk 0:00:06.9]} 106. Ke6
{[%clk 0:00:14.7]} 106... Kh8 {[%clk 0:00:07.8]} 107. Kf6 {[%clk 0:00:15.3]}
107... Kg8 {[%clk 0:00:07.7]} 108. Kg6 {[%clk 0:00:14.6]} 108... Kh8 {[%clk
0:00:08.6]} 109. Kxh6 {[%clk 0:00:14.8]} 109... Kg8 {[%clk 0:00:09.5]} 110. Kg6
{[%clk 0:00:14.9]} 110... Kh8 {[%clk 0:00:10.2]} 111. h6 {[%clk 0:00:15.8]}
111... Kg8 {[%clk 0:00:11.1]} 112. Be2 {[%clk 0:00:14.4]} 112... Kh8 {[%clk
0:00:12]} 113. Bg4 {[%clk 0:00:14.5]} 113... Kg8 {[%clk 0:00:12.9]} 114. Bf5
{[%clk 0:00:15.1]} 114... Kh8 {[%clk 0:00:13.8]} 115. Be4 {[%clk 0:00:15.2]}
115... Kg8 {[%clk 0:00:14.7]} 116. Kh5 {[%clk 0:00:16]} 116... Kh8 {[%clk
0:00:15]} 117. h7 {[%clk 0:00:16.9]} 117... Kg7 {[%clk 0:00:13.6]} 118. Kg5
{[%clk 0:00:17.8]} 118... Kh8 {[%clk 0:00:13.6]} 119. Kh6 {[%clk 0:00:16.4]}
1/2-1/2

[Event "*** Titled Tuesday Blitz"]
[Site "Chess.com"]
[Date "2020.11.24"]
[Round "9"]
[White "onetowin"]
[Black "ARTHURMOTIVATOR"]
[Result "0-1"]
[WhiteElo "2109"]
[BlackElo "2273"]
[TimeControl "180+1"]
[EndTime "11:58:44 PST"]
[Termination "ARTHURMOTIVATOR won by resignation"]

1. d4 {[%clk 0:03:00.9]} 1... Nf6 {[%clk 0:02:59.1]} 2. Nf3 {[%clk 0:03:01]}
2... g6 {[%clk 0:02:57.8]} 3. g3 {[%clk 0:02:59]} 3... Bg7 {[%clk 0:02:58]} 4.
Bg2 {[%clk 0:02:59.1]} 4... O-O {[%clk 0:02:58.3]} 5. O-O {[%clk 0:02:59.5]}
5... d6 {[%clk 0:02:57.2]} 6. c4 {[%clk 0:02:59.9]} 6... Nc6 {[%clk 0:02:55.5]}
7. Nc3 {[%clk 0:02:59.9]} 7... a6 {[%clk 0:02:55.1]} 8. b3 {[%clk 0:02:57.2]}
8... Rb8 {[%clk 0:02:53.6]} 9. Bb2 {[%clk 0:02:51.7]} 9... Bd7 {[%clk
0:02:52.7]} 10. d5 {[%clk 0:02:49.2]} 10... Na5 {[%clk 0:02:50.2]} 11. Qd2
{[%clk 0:02:47.6]} 11... c5 {[%clk 0:02:48.9]} 12. e4 {[%clk 0:02:38.1]} 12...
b5 {[%clk 0:02:41.2]} 13. e5 {[%clk 0:02:37.7]} 13... Ng4 {[%clk 0:02:25.6]} 14.
exd6 {[%clk 0:02:34]} 14... exd6 {[%clk 0:02:26.5]} 15. h3 {[%clk 0:02:31.9]}
15... bxc4 {[%clk 0:02:15.5]} 16. hxg4 {[%clk 0:02:24.5]} 16... cxb3 {[%clk
0:02:15.5]} 17. Ne4 {[%clk 0:02:16.6]} 17... Nc4 {[%clk 0:02:12.8]} 18. Qe2
{[%clk 0:02:09.8]} 18... Nxb2 {[%clk 0:01:59.1]} 19. Qxa6 {[%clk 0:02:06.8]}
19... Bb5 {[%clk 0:01:53.1]} 0-1

[Event "*** Titled Tuesday Blitz"]
[Site "Chess.com"]
[Date "2020.11.24"]
[Round "9"]
[White "Jospem"]
[Black "K_A_S_T_O_R"]
[Result "1/2-1/2"]
[WhiteElo "3064"]
[BlackElo "2843"]
[TimeControl "180+1"]
[EndTime "11:58:51 PST"]
[Termination "Game drawn by agreement"]

1. e4 {[%clk 0:03:00.9]} 1... c5 {[%clk 0:02:59.8]} 2. Nf3 {[%clk 0:03:01.5]}
2... d6 {[%clk 0:03:00]} 3. c3 {[%clk 0:03:02.1]} 3... Nf6 {[%clk 0:02:55.4]} 4.
Be2 {[%clk 0:03:02.3]} 4... Bg4 {[%clk 0:02:46.5]} 5. d3 {[%clk 0:02:57.4]} 5...
Nc6 {[%clk 0:02:39.9]} 6. Be3 {[%clk 0:02:57.4]} 6... e6 {[%clk 0:02:38.4]} 7.
Nbd2 {[%clk 0:02:57]} 7... d5 {[%clk 0:02:37.7]} 8. O-O {[%clk 0:02:42.7]} 8...
Be7 {[%clk 0:02:32.8]} 9. Ne1 {[%clk 0:02:24.8]} 9... Bxe2 {[%clk 0:02:28.8]}
10. Qxe2 {[%clk 0:02:25.7]} 10... d4 {[%clk 0:02:21]} 11. Bf4 {[%clk 0:02:23.3]}
11... dxc3 {[%clk 0:02:09.5]} 12. bxc3 {[%clk 0:02:23.9]} 12... Qd7 {[%clk
0:02:09.1]} 13. Be3 {[%clk 0:02:13.6]} 13... Rd8 {[%clk 0:02:07.2]} 14. f4
{[%clk 0:02:13.8]} 14... O-O {[%clk 0:02:04]} 1/2-1/2

[Event "*** Titled Tuesday Blitz"]
[Site "Chess.com"]
[Date "2020.11.24"]
[Round "9"]
[White "OMGCovid-19"]
[Black "Sjakkerntobi"]
[Result "0-1"]
[WhiteElo "1874"]
[BlackElo "2369"]
[TimeControl "180+1"]
[EndTime "11:59:10 PST"]
[Termination "Sjakkerntobi won by resignation"]

1. e4 {[%clk 0:03:00.9]} 1... e5 {[%clk 0:02:56.3]} 2. Nf3 {[%clk 0:03:00.7]}
2... d6 {[%clk 0:02:55.9]} 3. Bc4 {[%clk 0:03:00.1]} 3... Nf6 {[%clk 0:02:50.6]}
4. d4 {[%clk 0:02:57.5]} 4... exd4 {[%clk 0:02:20]} 5. O-O {[%clk 0:02:55.5]}
5... Be7 {[%clk 0:02:18.5]} 6. Nxd4 {[%clk 0:02:53.1]} 6... Nxe4 {[%clk
0:02:16.6]} 7. Re1 {[%clk 0:02:36.2]} 7... d5 {[%clk 0:02:13.4]} 8. Bd3 {[%clk
0:02:34]} 8... O-O {[%clk 0:02:04.2]} 9. Bxe4 {[%clk 0:02:19.9]} 9... dxe4
{[%clk 0:02:05.1]} 10. Rxe4 {[%clk 0:02:15.2]} 10... c5 {[%clk 0:02:05.4]} 11.
Rxe7 {[%clk 0:02:10.1]} 11... Qxe7 {[%clk 0:02:04.2]} 12. Nf3 {[%clk 0:02:05]}
12... Nc6 {[%clk 0:01:55.4]} 13. Be3 {[%clk 0:02:02.2]} 13... Bg4 {[%clk
0:01:53.1]} 14. Qd5 {[%clk 0:01:59.4]} 14... Rad8 {[%clk 0:01:50]} 15. Bxc5
{[%clk 0:01:34.4]} 15... Rxd5 {[%clk 0:01:45.2]} 0-1

[Event "*** Titled Tuesday Blitz"]
[Site "Chess.com"]
[Date "2020.11.24"]
[Round "9"]
[White "FMalexhdez"]
[Black "RaneshRatnesan"]
[Result "1-0"]
[WhiteElo "2279"]
[BlackElo "2124"]
[TimeControl "180+1"]
[EndTime "12:00:02 PST"]
[Termination "FMalexhdez won by resignation"]

1. e4 {[%clk 0:03:00.9]} 1... c5 {[%clk 0:02:58.6]} 2. Nf3 {[%clk 0:02:59]} 2...
d6 {[%clk 0:02:58.8]} 3. d4 {[%clk 0:02:59.5]} 3... cxd4 {[%clk 0:02:59.2]} 4.
Nxd4 {[%clk 0:03:00.1]} 4... Nf6 {[%clk 0:02:59]} 5. Nc3 {[%clk 0:03:00.6]} 5...
a6 {[%clk 0:02:59.3]} 6. h3 {[%clk 0:03:00.4]} 6... e5 {[%clk 0:02:59.5]} 7.
Nde2 {[%clk 0:03:00]} 7... h5 {[%clk 0:03:00]} 8. g3 {[%clk 0:03:00.1]} 8... b5
{[%clk 0:03:00]} 9. Bg2 {[%clk 0:02:59.8]} 9... Bb7 {[%clk 0:03:00.4]} 10. O-O
{[%clk 0:02:57.5]} 10... Be7 {[%clk 0:03:00.9]} 11. a4 {[%clk 0:02:55.6]} 11...
b4 {[%clk 0:03:01.1]} 12. Nd5 {[%clk 0:02:55.8]} 12... Nxd5 {[%clk 0:03:01.7]}
13. exd5 {[%clk 0:02:55.9]} 13... a5 {[%clk 0:03:02.4]} 14. c3 {[%clk
0:02:55.3]} 14... bxc3 {[%clk 0:03:01.2]} 15. Nxc3 {[%clk 0:02:55.2]} 15... Nd7
{[%clk 0:02:59.9]} 16. Nb5 {[%clk 0:02:50.9]} 16... g6 {[%clk 0:02:54.3]} 17.
Be3 {[%clk 0:02:49.5]} 17... O-O {[%clk 0:02:52.8]} 18. Rc1 {[%clk 0:02:49]}
18... Rc8 {[%clk 0:02:49.2]} 19. Na7 {[%clk 0:02:36.4]} 19... Rxc1 {[%clk
0:02:42.4]} 20. Qxc1 {[%clk 0:02:36.3]} 20... Nb8 {[%clk 0:02:34.4]} 21. Nc6
{[%clk 0:02:24.8]} 21... Nxc6 {[%clk 0:02:25.1]} 22. dxc6 {[%clk 0:02:24.8]}
22... Bc8 {[%clk 0:02:25.7]} 23. c7 {[%clk 0:02:19.6]} 23... Qd7 {[%clk
0:02:24.9]} 24. Qc6 {[%clk 0:02:01.1]} 24... Qxc6 {[%clk 0:02:20.4]} 25. Bxc6
{[%clk 0:02:00.6]} 25... Bxh3 {[%clk 0:02:21.1]} 26. Rc1 {[%clk 0:01:59.6]}
26... Bc8 {[%clk 0:02:21.3]} 27. Bd2 {[%clk 0:01:42.1]} 27... f5 {[%clk
0:02:17.1]} 28. Bxa5 {[%clk 0:01:36.9]} 28... h4 {[%clk 0:02:17.3]} 29. gxh4
{[%clk 0:01:19.6]} 29... Bxh4 {[%clk 0:02:18.2]} 30. b4 {[%clk 0:01:18.1]} 30...
Bg5 {[%clk 0:02:11.5]} 31. Rb1 {[%clk 0:01:12.7]} 31... e4 {[%clk 0:02:12.4]}
32. b5 {[%clk 0:01:12.1]} 32... e3 {[%clk 0:02:13]} 33. b6 {[%clk 0:01:05.4]}
33... Kf7 {[%clk 0:02:08.9]} 34. b7 {[%clk 0:01:04.7]} 34... Bxb7 {[%clk
0:02:09.1]} 35. Bxb7 {[%clk 0:01:04.4]} 1-0

[Event "*** Titled Tuesday Blitz"]
[Site "Chess.com"]
[Date "2020.11.24"]
[Round "9"]
[White "Chessalary"]
[Black "jacky72"]
[Result "0-1"]
[WhiteElo "2421"]
[BlackElo "2682"]
[TimeControl "180+1"]
[EndTime "12:00:08 PST"]
[Termination "jacky72 won by resignation"]

1. e4 {[%clk 0:03:00.5]} 1... e5 {[%clk 0:02:59.5]} 2. Nf3 {[%clk 0:03:00.6]}
2... Nc6 {[%clk 0:02:59.7]} 3. Bc4 {[%clk 0:03:01.1]} 3... Bc5 {[%clk
0:02:59.2]} 4. c3 {[%clk 0:03:01.5]} 4... Nf6 {[%clk 0:02:58.9]} 5. d3 {[%clk
0:03:02.2]} 5... a6 {[%clk 0:02:58.5]} 6. a4 {[%clk 0:03:01.2]} 6... d6 {[%clk
0:02:58.6]} 7. h3 {[%clk 0:03:00.7]} 7... h6 {[%clk 0:02:58.7]} 8. O-O {[%clk
0:03:01.2]} 8... Ba7 {[%clk 0:02:59.1]} 9. b4 {[%clk 0:02:59.3]} 9... g5 {[%clk
0:02:58.9]} 10. d4 {[%clk 0:02:32.8]} 10... g4 {[%clk 0:02:58.2]} 11. hxg4
{[%clk 0:02:32.5]} 11... Bxg4 {[%clk 0:02:59.1]} 12. dxe5 {[%clk 0:02:23.9]}
12... Nxe5 {[%clk 0:02:58.6]} 13. Be2 {[%clk 0:02:24.4]} 13... Nxf3+ {[%clk
0:02:55.6]} 14. Bxf3 {[%clk 0:02:25.3]} 14... Rg8 {[%clk 0:02:56.3]} 15. Bxh6
{[%clk 0:02:12.6]} 15... Qe7 {[%clk 0:02:56.3]} 16. a5 {[%clk 0:01:51.8]} 16...
O-O-O {[%clk 0:02:55.3]} 17. b5 {[%clk 0:01:50.9]} 17... Rg6 {[%clk 0:02:50.4]}
18. Be3 {[%clk 0:01:49.6]} 18... Bxe3 {[%clk 0:02:46.7]} 19. fxe3 {[%clk
0:01:48.4]} 19... Rdg8 {[%clk 0:02:47.1]} 20. bxa6 {[%clk 0:01:45.5]} 20... bxa6
{[%clk 0:02:48]} 21. Qe2 {[%clk 0:01:42.5]} 21... Bxf3 {[%clk 0:02:45.1]} 22.
Qxa6+ {[%clk 0:01:41.6]} 22... Kd7 {[%clk 0:02:42.3]} 23. Qb5+ {[%clk
0:01:40.4]} 23... Kd8 {[%clk 0:02:41.7]} 24. Qb8+ {[%clk 0:01:38.3]} 24... Kd7
{[%clk 0:02:42]} 25. Qb5+ {[%clk 0:01:38.3]} 25... c6 {[%clk 0:02:42.2]} 26.
Qb7+ {[%clk 0:01:24.7]} 26... Ke6 {[%clk 0:02:41.7]} 27. Qb3+ {[%clk 0:01:23.8]}
27... Ke5 {[%clk 0:02:41.9]} 28. Rxf3 {[%clk 0:01:18.6]} 28... Rxg2+ {[%clk
0:02:41.7]} 29. Kf1 {[%clk 0:01:19.1]} 29... Rg1+ {[%clk 0:02:26]} 30. Ke2
{[%clk 0:01:18.9]} 30... R8g2+ {[%clk 0:02:22.3]} 31. Kd3 {[%clk 0:01:18.5]}
31... Nxe4 {[%clk 0:02:20.7]} 32. Ra4 {[%clk 0:00:52.5]} 32... Nc5+ {[%clk
0:02:17.5]} 0-1